bitfinex-derivatives/quotes_SOLF0:USTF0_20241026
["timestamp","ask_amount","ask_price","bid_price","bid_amount"]
[1729986538178,4.1,170.81,170.7,81.43827986]
[1729986538490,2.9311,170.78,170.76,8.08515072]
[1729986538677,4.1,170.77,170.76,8.08515072]
[1729986540383,4.1,170.77,170.76,11.01655072]
[1729986546581,2.9315,170.76,170.71,2.9322]
[1729986546785,8.08515072,170.76,170.71,11.01735072]
[1729986547184,2.9317,170.75,170.71,11.01735072]
[1729986547489,8.08515072,170.76,170.71,11.01735072]
[1729986548689,2.9318,170.74,170.71,11.01735072]
[1729986548891,4.1,170.73,170.71,11.01735072]
[1729986550494,2.9318,170.74,170.71,11.01735072]
[1729986550681,4.1,170.73,170.71,11.01735072]
[1729986556098,4.1,170.73,170.71,2.9322]
[1729986560993,4.1,170.73,170.72,1.46648751]
[1729986561999,4.1,170.73,170.71,2.9322]
[1729986562201,4.1,170.73,170.72,1.46648751]
[1729986563806,4.1,170.73,170.71,2.9322]
[1729986576312,2.9318,170.74,170.71,2.9322]
[1729986576507,4.1,170.73,170.71,2.9322]
[1729986577113,7.032,170.73,170.71,2.9322]
[1729986579219,7.032,170.73,170.63,4.1]
[1729986579519,7.032,170.73,170.7,2.9324]
[1729986579825,2.9322,170.72,170.71,1.46655719]
[1729986580513,11.01735072,170.72,170.71,1.46655719]
[1729986580816,11.01735072,170.72,170.68,5.08199573]
[1729986581021,11.01735072,170.72,170.69,1.46669976]
[1729986581321,11.01735072,170.72,170.7,1.46669976]
[1729986581517,11.01735072,170.72,170.69,2.9325]
[1729986581711,11.01735072,170.72,170.7,1.46667554]
[1729986581913,11.01735072,170.72,170.69,2.9325]
[1729986582216,2.9323,170.71,170.7,1.46666525]
[1729986582622,2.9323,170.71,170.69,2.9326]
[1729986584321,2.9323,170.71,170.68,2.9327]
[1729986584622,2.9323,170.71,170.69,1.46670375]
[1729986584816,2.9323,170.71,170.68,2.9327]
[1729986585015,2.9323,170.71,170.69,1.46670442]
[1729986585222,2.9323,170.71,170.68,2.9327]
[1729986585521,2.9323,170.71,170.69,1.46673192]
[1729986585719,2.9323,170.71,170.68,2.9327]
[1729986585920,2.9323,170.71,170.69,1.46673192]
[1729986586120,2.9323,170.71,170.68,2.9327]
[1729986586314,2.9323,170.71,170.69,1.46673192]
[1729986586510,2.9323,170.71,170.68,2.9327]
[1729986586819,2.9323,170.71,170.69,1.46671817]
[1729986587019,2.9323,170.71,170.68,2.9327]
[1729986587219,2.9323,170.71,170.69,1.46671662]
[1729986587422,2.9323,170.71,170.68,2.9327]
[1729986587626,2.9323,170.71,170.69,1.46673036]
[1729986587819,2.9323,170.71,170.68,2.9327]
[1729986588019,2.9323,170.71,170.69,1.46673192]
[1729986588321,2.9323,170.71,170.68,2.9327]
[1729986588624,2.9323,170.71,170.69,1.46673192]
[1729986588823,2.9323,170.71,170.68,2.9327]
[1729986596225,11.01745072,170.71,170.68,2.9327]
[1729986597229,11.01745072,170.71,170.69,2.9326]
[1729986598228,2.9323,170.71,170.69,2.9326]
[1729986602431,2.9323,170.71,170.68,2.9327]
[1729986604234,4.1,170.7,170.68,2.9327]
[1729986604534,4.1,170.7,170.69,1.46665579]
[1729986606133,3.6612,170.79,170.69,9.55180651]
[1729986606334,17.6,170.9,170.63,4.1]
[1729986606335,17.6,170.9,170.74,8.08515072]
[1729986606637,8.08515072,170.8,170.74,8.08515072]
[1729986606843,2.931,170.79,170.76,2.9313]
[1729986607233,8.08515072,170.78,170.74,8.08515072]
[1729986607435,4.1,170.77,170.74,8.08515072]
[1729986608344,4.1,170.77,170.75,2.9316]
[1729986610246,4.1,170.76,170.75,2.9316]
[1729986611953,11.01625072,170.78,170.75,2.9316]
[1729986612253,4.1,170.77,170.75,2.9316]
[1729986616352,7.0312,170.77,170.75,2.9316]
[1729986628676,4.1,170.77,170.75,2.9316]
[1729986631268,7.0312,170.77,170.75,2.9316]
[1729986634476,7.0312,170.77,170.75,11.01675072]
[1729986635972,2.9312,170.77,170.75,11.01675072]
[1729986636274,4.1,170.76,170.75,11.01675072]
[1729986636776,4.1,170.76,170.75,12.48299566]
[1729986638577,4.1,170.76,170.75,1.46624494]
[1729986638781,4.1,170.76,170.74,11.01685072]
[1729986639778,4.1,170.76,170.75,8.08515072]
[1729986639971,4.1,170.76,170.75,9.55143596]
[1729986641283,4.1,170.76,170.75,12.48303596]
[1729986641675,4.1,170.76,170.75,11.01675072]
[1729986641874,4.1,170.76,170.75,12.48302896]
[1729986644379,4.1,170.76,170.71,5.08081748]
[1729986644579,12.18515072,170.76,170.7,8.08515072]
[1729986645190,7.0315,170.76,170.72,2.9319]
[1729986645390,4.1,170.76,170.73,8.08515072]
[1729986646286,8.08515072,170.79,170.73,8.08515072]
[1729986646582,4.1,170.78,170.73,8.08515072]
[1729986647386,2.9314,170.76,170.74,2.9317]
[1729986649679,4.1,170.75,170.74,2.9317]
[1729986657691,2.9314,170.76,170.74,2.9317]
[1729986657895,4.1,170.75,170.74,2.9317]
[1729986658292,4.1,170.75,170.74,4.39803193]
[1729986660394,4.1,170.75,170.74,2.9317]
[1729986660592,4.1,170.75,170.74,4.39803416]
[1729986662594,7.0316,170.75,170.74,1.46633416]
[1729986662796,4.1,170.75,170.74,1.46633416]
[1729986663497,4.1,170.75,170.74,1.46634147]
[1729986664795,2.9323,170.72,170.65,2.9333]
[1729986664998,4.1,170.71,170.67,8.08515072]
[1729986665189,4.1,170.71,170.68,5.08613939]
[1729986665393,4.1,170.71,170.69,5.08613939]
[1729986665588,4.1,170.71,170.67,8.08515072]
[1729986665789,4.1,170.71,170.68,5.0865957]
[1729986665990,4.1,170.71,170.69,8.0190957]
[1729986666195,4.1,170.71,170.69,2.9325]
[1729986666997,4.1,170.71,170.69,8.08515072]
[1729986667902,4.1,170.71,170.69,11.01765072]
[1729986669203,4.1,170.73,170.72,2.9319]
[1729986669401,4.1,170.73,170.72,11.01705072]
[1729986670503,2.9316,170.75,170.72,11.01705072]
[1729986670709,4.1,170.74,170.72,11.01705072]
[1729986672599,4.1,170.74,170.72,8.08515072]
[1729986672803,4.1,170.75,170.72,8.08515072]
[1729986673105,4.1,170.75,170.74,8.08515072]
[1729986673308,4.1,170.75,170.74,16.10599638]
[1729986674209,4.1,170.75,170.74,11.01675072]
[1729986674509,4.1,170.75,170.74,16.10657854]
[1729986676910,4.1,170.75,170.74,17.57288093]
[1729986677407,4.1,170.75,170.74,9.48773021]
[1729986677608,4.1,170.75,170.74,17.57288093]
[1729986677804,4.1,170.75,170.74,16.10774543]
[1729986678010,4.1,170.75,170.74,17.57408468]
[1729986678313,4.1,170.75,170.74,12.48308997]
[1729986678504,4.1,170.75,170.74,17.57407918]
[1729986679917,4.1,170.75,170.74,12.48308997]
[1729986680911,4.1,170.75,170.74,17.57404795]
[1729986681110,2.9312,170.77,170.74,17.57404795]
[1729986681314,4.1,170.77,170.76,8.08515072]
[1729986681506,4.1,170.77,170.76,9.55148997]
[1729986682113,3.7312,170.81,170.76,9.55148997]
[1729986682312,2.9309,170.79,170.77,1.46628189]
[1729986682512,2.9309,170.79,170.76,11.01645072]
[1729986682914,4.1,170.78,170.76,11.01645072]
[1729986683115,4.1,170.78,170.77,1.46620711]
[1729986684609,12.18515072,170.78,170.65,8.84864794]
[1729986684916,2.9314,170.77,170.73,2.9319]
[1729986685111,2.9314,170.77,170.72,8.08515072]
[1729986685306,2.9314,170.77,170.74,2.9316]
[1729986696621,2.9314,170.77,170.75,1.46629952]
[1729986696813,2.9314,170.77,170.76,1.46629952]
[1729986697212,2.9311,170.78,170.76,1.46629952]
[1729986697527,4.1,170.77,170.76,8.08515072]
[1729986697714,4.1,170.78,170.76,9.55135932]
[1729986697915,4.1,170.78,170.76,8.08515072]
[1729986698120,4.1,170.78,170.77,4.39740875]
[1729986698424,4.1,170.78,170.76,8.08515072]
[1729986699222,4.1,170.78,170.76,11.01645072]
[1729986700223,4.1,170.78,170.77,1.46617821]
[1729986703519,2.9309,170.79,170.77,1.46617821]
[1729986703717,4.08,170.78,170.76,8.08515072]
[1729986704017,4.08,170.78,170.77,4.39737665]
[1729986704220,4.08,170.78,170.77,2.9312]
[1729986709327,4.08,170.78,170.77,4.39736389]
[1729986710618,4.08,170.78,170.77,2.9312]
[1729986710814,4.08,170.78,170.77,4.39733656]
[1729986713331,4.08,170.78,170.77,2.9312]
[1729986713532,4.08,170.78,170.77,4.397282]
[1729986714432,4.08,170.78,170.77,2.9312]
[1729986714627,4.08,170.78,170.77,4.39726138]
[1729986718137,4.08,170.78,170.77,2.9312]
[1729986718725,4.08,170.78,170.77,4.397282]
[1729986726941,1.2305,170.86,170.79,2.9308]
[1729986727144,4.08,170.85,170.81,8.08515072]
[1729986727538,2.9302,170.84,170.81,8.08515072]
[1729986727934,4.08,170.83,170.81,8.08515072]
[1729986729238,4.08,170.83,170.81,11.01565072]
[1729986731934,4.08,170.83,170.81,2.9305]
[1729986732246,4.08,170.83,170.82,8.08515072]
[1729986732742,2.9302,170.84,170.82,8.08515072]
[1729986732944,4.08,170.83,170.82,8.08515072]
[1729986733557,4.08,170.83,170.81,11.01565072]
[1729986746770,4.08,170.83,170.71,3.7619]
[1729986746771,2.9306,170.81,170.76,5.07689434]
[1729986746969,2.9306,170.81,170.77,14.62784686]
[1729986747160,2.9306,170.81,170.78,1.46581111]
[1729986747357,2.9306,170.81,170.79,1.46581111]
[1729986747560,2.9306,170.81,170.77,8.08515072]
[1729986747857,2.9306,170.81,170.78,1.4658114]
[1729986748062,2.9306,170.81,170.77,8.08515072]
[1729986748263,2.9306,170.81,170.78,2.931]
[1729986756874,12.16515072,170.83,170.71,3.7619]
[1729986756875,2.931,170.79,170.71,3.7619]
[1729986757169,4.08,170.78,170.75,8.08515072]
[1729986757374,4.08,170.78,170.76,1.46596291]
[1729986757574,4.08,170.78,170.77,1.46596291]
[1729986758074,4.08,170.78,170.75,8.08515072]
[1729986758274,4.08,170.78,170.76,4.39729393]
[1729986758476,4.08,170.78,170.77,1.46599393]
[1729986761479,4.08,170.78,170.76,2.9313]
[1729986761681,4.08,170.78,170.77,1.46597793]
[1729986764886,7.0111,170.78,170.77,1.46597793]
[1729986765072,7.0111,170.78,170.74,2.9316]
[1729986765277,7.0111,170.78,170.75,16.09900282]
[1729986765578,7.0111,170.78,170.76,1.46605161]
[1729986765772,7.0111,170.78,170.77,1.46605161]
[1729986766583,7.0111,170.78,170.75,11.01665072]
[1729986766783,7.0111,170.78,170.76,1.46605849]
[1729986767088,7.0111,170.78,170.77,1.46605849]
[1729986767679,7.0111,170.78,170.75,11.01665072]
[1729986767977,7.0111,170.78,170.76,1.46612404]
[1729986768181,7.0111,170.78,170.75,11.01665072]
[1729986768375,7.0111,170.78,170.76,1.46613661]
[1729986768572,7.0111,170.78,170.75,11.01665072]
[1729986768881,4.08,170.8,170.78,2.931]
[1729986769178,4.08,170.8,170.79,1.46607071]
[1729986773381,4.08,170.8,170.78,2.931]
[1729986774982,4.08,170.8,170.79,1.46591406]
[1729986775986,4.08,170.8,170.78,2.931]
[1729986781497,4.08,170.8,170.79,1.46590929]
[1729986782488,4.08,170.8,170.78,2.931]
[1729986792919,4.08,170.8,170.79,1.46595403]
[1729986797714,4.08,170.8,170.78,2.931]
[1729986805426,4.08,170.8,170.79,1.46596779]
[1729986806018,12.16515072,170.8,170.71,3.7619]
[1729986806220,12.16515072,170.8,170.74,8.08515072]
[1729986806423,12.16515072,170.8,170.75,6.55412938]
[1729986806626,12.16515072,170.8,170.76,6.55412938]
[1729986806819,12.16515072,170.8,170.77,1.46605784]
[1729986807025,2.931,170.79,170.76,2.9313]
[1729986807224,2.931,170.79,170.77,1.46606432]
[1729986807426,2.931,170.79,170.76,2.9313]
[1729986807623,2.931,170.79,170.77,1.46606432]
[1729986807827,2.931,170.79,170.76,2.9313]
[1729986808029,2.931,170.79,170.77,1.46605744]
[1729986808228,2.931,170.79,170.76,2.9313]
[1729986808429,2.931,170.79,170.77,1.46608591]
[1729986808628,2.931,170.79,170.76,2.9313]
[1729986808828,2.931,170.79,170.77,1.46608576]
[1729986809031,2.931,170.79,170.76,2.9313]
[1729986809233,2.931,170.79,170.77,1.46608576]
[1729986809531,2.931,170.79,170.76,2.9313]
[1729986809732,2.931,170.79,170.77,1.46609952]
[1729986809932,2.931,170.79,170.76,2.9313]
[1729986810127,2.931,170.79,170.77,1.46609952]
[1729986810431,2.931,170.79,170.78,1.46609952]
[1729986811231,2.931,170.79,170.76,2.9313]
[1729986811431,2.931,170.79,170.77,1.466072]
[1729986811633,2.931,170.79,170.78,1.466072]
[1729986814935,2.931,170.79,170.76,2.9313]
[1729986815126,2.931,170.79,170.78,1.46608513]
[1729986816129,2.931,170.79,170.76,2.9313]
[1729986817230,2.931,170.79,170.77,5.09279134]
[1729986817833,2.931,170.79,170.76,2.9313]
[1729986818734,2.931,170.79,170.77,1.46607123]
[1729986818936,56.96,170.89,170.78,8.08515072]
[1729986819131,8.08515072,170.88,170.82,8.08515072]
[1729986819332,4.08,170.87,170.82,8.08515072]
[1729986820241,7.0096,170.87,170.84,2.93]
[1729986820627,7.0096,170.87,170.83,1.46566508]
[1729986821233,7.0096,170.87,170.83,6.55723937]
[1729986822336,7.0096,170.87,170.83,4.39576508]
[1729986823933,7.0096,170.87,170.83,1.46566508]
[1729986824129,7.0096,170.87,170.84,2.93]
[1729986828534,7.0096,170.87,170.84,11.01515072]
[1729986835947,4.08,170.87,170.84,8.08515072]
[1729986836147,7.0096,170.87,170.84,11.01515072]
[1729986839458,4.08,170.87,170.86,2.9297]
[1729986840145,4.08,170.87,170.85,8.08515072]
[1729986840350,4.08,170.87,170.85,11.01495072]
[1729986840550,2.9294,170.88,170.85,11.01495072]
[1729986840752,7.0094,170.88,170.85,11.01495072]
[1729986842658,7.0094,170.88,170.86,8.08515072]
[1729986849446,7.0094,170.88,170.85,2.9298]
[1729986849654,2.9299,170.85,170.82,9.55059466]
[1729986849864,2.9299,170.85,170.82,8.08515072]
[1729986850154,2.9299,170.85,170.82,11.01535072]
[1729986851550,2.9302,170.83,170.8,2.9306]
[1729986851757,12.16515072,170.84,170.8,2.9306]
[1729986852050,4.08,170.83,170.8,2.9306]
[1729986853956,7.0103,170.83,170.79,11.01595072]
[1729986860059,7.0103,170.83,170.79,8.08515072]
[1729986860261,7.0103,170.83,170.8,2.9307]
[1729986871975,15.09545072,170.83,170.8,2.9307]
[1729986877276,2.9305,170.82,170.73,7.9091]
[1729986877480,2.9305,170.82,170.74,6.54221965]
[1729986877778,2.9305,170.82,170.78,2.931]
[1729986877981,2.9305,170.82,170.79,1.46572088]
[1729986878173,2.9305,170.82,170.76,8.08515072]
[1729986878374,2.9305,170.82,170.77,6.54301745]
[1729986878585,2.9305,170.82,170.78,6.54301745]
[1729986878780,2.9305,170.82,170.79,1.4657279]
[1729986878986,2.9305,170.82,170.76,8.08515072]
[1729986879287,2.9305,170.82,170.79,2.9309]
[1729986880477,2.9305,170.82,170.8,1.46572805]
[1729986880681,2.9305,170.82,170.79,2.9309]
[1729986880884,2.9305,170.82,170.8,1.46572805]
[1729986880885,11.01565072,170.82,170.8,1.46572805]
[1729986881084,11.01565072,170.82,170.79,2.9309]
[1729986881284,11.01565072,170.82,170.8,1.46572805]
[1729986881486,11.01565072,170.82,170.79,2.9309]
[1729986881786,11.01565072,170.82,170.8,1.46572805]
[1729986881990,11.01565072,170.82,170.79,2.9309]
[1729986882186,11.01565072,170.82,170.8,1.46572805]
[1729986882388,11.01565072,170.82,170.81,1.46572805]
[1729986883979,2.9308,170.8,170.77,2.9312]
[1729986884179,12.16515072,170.79,170.77,2.9312]
[1729986895298,2.9312,170.78,170.75,2.9315]
[1729986895501,2.9312,170.78,170.76,1.46598782]
[1729986895699,2.9312,170.78,170.75,2.9315]
[1729986895900,2.9312,170.78,170.76,1.46598782]
[1729986896201,2.9312,170.78,170.75,2.9315]
[1729986896397,2.9312,170.78,170.76,1.46598782]
[1729986896594,2.9312,170.78,170.75,2.9315]
[1729986896795,2.9312,170.78,170.76,1.46598782]
[1729986896998,2.9312,170.78,170.75,2.9315]
[1729986897196,2.9312,170.78,170.76,1.46598782]
[1729986897395,2.9312,170.78,170.75,2.9315]
[1729986897698,2.9312,170.78,170.76,1.46598767]
[1729986897895,2.9312,170.78,170.75,2.9315]
[1729986898100,2.9312,170.78,170.76,1.4659883]
[1729986898400,11.01635072,170.78,170.75,2.9315]
[1729986898602,11.01635072,170.78,170.76,1.46598791]
[1729986898898,11.01635072,170.78,170.75,2.9315]
[1729986899099,11.01635072,170.78,170.76,1.46598835]
[1729986899301,11.01635072,170.78,170.75,2.9315]
[1729986899495,11.01635072,170.78,170.76,1.46598796]
[1729986899696,11.01635072,170.78,170.75,2.9315]
[1729986899900,11.01635072,170.78,170.76,1.46598796]
[1729986900101,11.01635072,170.78,170.75,2.9315]
[1729986900303,11.01635072,170.78,170.76,1.46598796]
[1729986900500,11.01635072,170.78,170.75,2.9315]
[1729986900701,11.01635072,170.78,170.76,1.46598782]
[1729986900889,11.01635072,170.78,170.75,2.9315]
[1729986901095,11.01635072,170.78,170.76,1.46598782]
[1729986901404,11.01635072,170.78,170.75,2.9315]
[1729986901595,11.01635072,170.78,170.76,1.46598748]
[1729986901797,11.01635072,170.78,170.75,2.9315]
[1729986901996,11.01635072,170.78,170.76,1.46598526]
[1729986902296,11.01635072,170.78,170.75,2.9315]
[1729986902495,11.01635072,170.78,170.76,1.46598526]
[1729986902699,11.01635072,170.78,170.75,2.9315]
[1729986902898,11.01635072,170.78,170.76,1.46598592]
[1729986903101,11.01635072,170.78,170.75,2.9315]
[1729986903304,11.01635072,170.78,170.76,1.46598592]
[1729986903494,11.01635072,170.78,170.75,2.9315]
[1729986904002,11.01635072,170.78,170.76,1.46598748]
[1729986904202,11.01635072,170.78,170.75,2.9315]
[1729986904402,11.01635072,170.78,170.76,1.46598747]
[1729986904597,1.2602,170.86,170.75,8.08515072]
[1729986904802,2.9305,170.82,170.78,2.931]
[1729986904999,8.08515072,170.82,170.78,2.931]
[1729986905202,4.08,170.81,170.78,2.931]
[1729986905705,11.01525072,170.84,170.8,2.9307]
[1729986906003,4.08,170.83,170.79,8.08515072]
[1729986906202,12.16515072,170.84,170.79,8.08515072]
[1729986906800,12.16515072,170.84,170.74,6.96256229]
[1729986906801,56.96,170.9,170.82,8.08515072]
[1729986906993,12.16515072,170.89,170.83,8.08515072]
[1729986908193,15.09445072,170.89,170.83,8.08515072]
[1729986909306,15.09445072,170.89,170.85,2.9298]
[1729986913009,12.16515072,170.89,170.85,2.9298]
[1729986913209,2.9294,170.88,170.85,2.9298]
[1729986916015,2.5556,170.95,170.86,8.08515072]
[1729986916215,2.5556,170.95,170.87,8.08515072]
[1729986916216,12.16515072,170.92,170.87,8.08515072]
[1729986916517,2.9289,170.91,170.87,8.08515072]
[1729986916718,12.16515072,170.92,170.87,8.08515072]
[1729986917109,8.08515072,170.91,170.86,11.01475072]
[1729986917308,2.9291,170.9,170.86,11.01475072]
[1729986919715,2.9291,170.9,170.87,2.9295]
[1729986919911,2.9291,170.9,170.87,8.08515072]
[1729986920831,2.9291,170.9,170.87,11.01445072]
[1729986921636,2.9291,170.9,170.87,8.08515072]
[1729986921930,7.0088,170.92,170.88,2.9292]
[1729986923633,4.08,170.92,170.88,2.9292]
[1729986923834,2.9289,170.91,170.88,2.9292]
[1729986925424,8.08515072,170.96,170.9,8.08515072]
[1729986925627,4.08,170.95,170.9,8.08515072]
[1729986926027,2.9284,170.94,170.91,2.9288]
[1729986926226,58.54462469,171.0,170.93,8.08515072]
[1729986926433,4.08,170.97,170.93,8.08515072]
[1729986927130,2.928,170.96,170.94,2.9283]
[1729986927326,4.08,170.97,170.94,2.9283]
[1729986928339,7.0079,170.97,170.94,2.9283]
[1729986931233,4.08,170.97,170.96,2.928]
[1729986931435,58.54462469,171.0,170.96,8.08515072]
[1729986931436,4.08,171.0,170.96,8.08515072]
[1729986931830,2.9274,171.0,170.96,11.01305072]
[1729986933542,4.08,171.01,170.96,8.08515072]
[1729986933740,56.92,171.07,170.98,8.08515072]
[1729986933929,8.08515072,171.04,170.98,8.08515072]
[1729986934941,2.9273,171.01,170.99,8.08515072]
[1729986935730,2.927,171.02,170.99,8.08515072]
[1729986935933,2.927,171.02,171.0,8.08515072]
[1729986939633,4.08,171.03,171.0,8.08515072]
[1729986940737,2.9271,171.02,171.0,8.08515072]
[1729986942548,2.9275,170.99,170.96,2.9279]
[1729986942747,2.9275,170.99,170.96,11.01305072]
[1729986944346,2.9275,170.99,170.96,2.9279]
[1729986944546,2.9275,170.99,170.97,8.08515072]
[1729986945750,2.9281,170.96,170.92,2.9287]
[1729986945954,2.9281,170.96,170.94,8.08515072]
[1729986946252,8.08515072,170.98,170.9,4.08]
[1729986946443,8.08515072,170.97,170.92,8.08515072]
[1729986946643,8.08515072,170.97,170.91,8.08515072]
[1729986947545,2.9284,170.94,170.91,8.08515072]
[1729986948351,2.9284,170.94,170.92,8.08515072]
[1729986948946,2.9284,170.94,170.9,2.9289]
[1729986949142,2.9284,170.94,170.91,8.08515072]
[1729986956654,2.9284,170.94,170.92,8.08515072]
[1729986963967,2.9284,170.94,170.91,2.9288]
[1729986964169,2.9284,170.94,170.91,11.01395072]
[1729986981379,7.0078,170.98,170.94,2.9283]
[1729986981577,7.0078,170.98,170.94,11.01345072]
[1729986986173,8.08515072,171.0,170.94,11.01345072]
[1729986986374,4.08,171.01,170.98,8.08515072]
[1729986987288,7.0072,171.01,170.98,11.01265072]
[1729986987582,4.08,171.04,171.0,8.08515072]
[1729986987784,4.08,171.04,171.03,8.08515072]
[1729986988587,2.9266,171.05,171.03,8.08515072]
[1729986988883,4.08,171.04,171.03,8.08515072]
[1729986991279,2.9256,171.1,171.05,2.9264]
[1729986991479,4.06,171.11,171.07,8.08515072]
[1729986991682,4.06,171.1,171.07,8.08515072]
[1729986991991,2.9259,171.09,171.07,8.08515072]
[1729986992987,2.9259,171.08,171.07,8.08515072]
[1729986993388,12.14515072,171.1,171.03,2.9266]
[1729986993592,2.926,171.08,171.02,8.08515072]
[1729986993785,8.08515072,171.07,171.02,8.08515072]
[1729986993987,4.06,171.06,171.02,8.08515072]
[1729986994585,6.9863,171.06,171.02,11.01195072]
[1729986995995,2.9266,171.05,171.02,11.01205072]
[1729986996295,4.06,171.06,171.04,8.08515072]
[1729986998388,4.06,171.06,171.05,8.08515072]
[1729987004096,6.9863,171.06,171.05,8.08515072]
[1729987004296,4.06,171.06,171.03,8.08515072]
[1729987004600,4.06,171.06,171.02,8.08515072]
[1729987004901,2.9269,171.03,171.02,8.08515072]
[1729987005300,2.9271,171.02,170.98,2.9275]
[1729987005494,6.9871,171.02,171.0,8.08515072]
[1729987005798,6.9871,171.02,170.98,2.9275]
[1729987005990,6.9871,171.02,171.0,8.08515072]
[1729987013996,2.9273,171.0,170.98,8.08515072]
[1729987014591,2.9273,171.0,170.96,2.9279]
[1729987014801,2.9273,171.0,170.97,8.08515072]
[1729987015598,2.9273,171.0,170.97,11.01295072]
[1729987016702,2.9276,170.98,170.97,8.08515072]
[1729987017101,6.9876,170.98,170.95,8.08515072]
[1729987020292,6.9876,170.98,170.95,11.01325072]
[1729987021097,4.06,170.98,170.97,11.01295072]
[1729987021296,2.4164,171.09,170.97,8.08515072]
[1729987021297,8.08515072,171.03,170.97,8.08515072]
[1729987021498,4.06,171.02,170.98,8.08515072]
[1729987021703,2.9272,171.01,170.98,8.08515072]
[1729987022601,4.06,171.0,170.98,11.01275072]
[1729987023701,6.9872,171.01,170.98,11.01275072]
[1729987024013,4.06,171.01,170.99,11.01255072]
[1729987024401,2.927,171.02,170.99,11.01255072]
[1729987024402,4.06,171.03,171.0,2.9272]
[1729987024602,4.06,171.03,171.01,8.08515072]
[1729987025102,4.06,171.03,171.01,11.01225072]
[1729987025505,4.06,171.04,171.02,8.08515072]
[1729987026705,6.9867,171.04,171.02,8.08515072]
[1729987026912,4.06,171.04,171.02,8.08515072]
[1729987027814,6.9865,171.05,171.02,8.08515072]
[1729987028000,4.06,171.05,171.04,8.08515072]
[1729987028405,9.33185072,171.11,171.04,8.08515072]
[1729987028605,6.9857,171.1,171.08,8.08515072]
[1729987028813,4.06,171.1,171.09,8.08515072]
[1729987029309,4.06,171.1,171.08,8.08515072]
[1729987029509,69.56106885,171.13,171.08,8.08515072]
[1729987029703,4.06,171.12,171.08,8.08515072]
[1729987030108,2.9256,171.1,171.08,8.08515072]
[1729987030512,2.9258,171.09,171.05,11.01145072]
[1729987030910,4.06,171.08,171.02,1.2331]
[1729987031215,4.06,171.08,171.06,8.08515072]
[1729987033418,6.986,171.08,171.06,8.08515072]
[1729987034517,6.9859,171.08,171.06,8.08515072]
[1729987034717,4.06,171.08,171.07,8.08515072]
[1729987035223,61.47591813,171.13,171.07,8.08515072]
[1729987035224,4.06,171.1,171.07,8.08515072]
[1729987035415,4.06,171.1,171.09,8.08515072]
[1729987038417,6.9855,171.11,171.09,8.08515072]
[1729987038618,2.9255,171.11,171.09,8.08515072]
[1729987038818,6.9855,171.11,171.09,8.08515072]
[1729987040423,2.9255,171.11,171.09,8.08515072]
[1729987041226,4.06,171.12,171.1,8.08515072]
[1729987041430,6.9852,171.13,171.1,8.08515072]
[1729987041625,6.9852,171.13,171.12,8.08515072]
[1729987042520,3.7364,171.22,171.13,2.9249]
[1729987042719,8.08515072,171.2,171.14,8.08515072]
[1729987043927,2.9247,171.15,171.14,8.08515072]
[1729987048425,4.06,171.16,171.06,4.06]
[1729987048626,2.9251,171.13,171.12,8.08515072]
[1729987050133,12.14515072,171.16,171.04,89.93288466]
[1729987050436,8.08515072,171.09,170.98,4.06]
[1729987050639,4.06,171.08,171.03,8.08515072]
[1729987051229,2.9264,171.06,171.03,8.08515072]
[1729987051432,8.08515072,171.07,170.98,2.5275]
[1729987051632,8.08515072,171.07,171.01,8.08515072]
[1729987052143,8.08515072,171.05,170.99,8.08515072]
[1729987052336,4.12,171.04,170.99,8.08515072]
[1729987052637,8.08515072,171.03,170.94,5.05501143]
[1729987052837,8.08515072,171.03,170.97,8.08515072]
[1729987053038,2.9273,171.0,170.97,8.08515072]
[1729987053232,4.12,171.0,170.95,8.08515072]
[1729987053641,2.9276,170.99,170.95,8.08515072]